Cogmind - Beta 13 @@@ ROGUE MODE // 2024.04.26 @ 15:33:20 Player: A Foxgirl OWO Result: Self-destructed Performance ------------- Evolutions (1) 500 Regions Visited (3) 600 Robots Destroyed (17) 85 Value Destroyed (458) 458 Prototype IDs (1) 20 Alien Tech Used (0) 0 Bonus (0) 0 TOTAL SCORE: 1663 Bonus ------- None Cogmind --------- Core Integrity 255/400 Matter 232/300 Energy 250/250 System Corruption 0% Temperature Cool (0) Movement Walking (120) Location -9/Materials Parts ------- > --- POWER (2) -------- Ion Engine > --- PROPULSION (3) --- Aluminum Leg Aluminum Leg > --- UTILITY (2) ------ Structural Scanner > --- WEAPON (2) ------- Light Assault Rifle Light Assault Rifle > --- INVENTORY (5) ---- Light Cannon Rocket Launcher Peak State ------------ > --- POWER ------------ Ion Engine Ion Engine > --- PROPULSION ------- Aluminum Leg Aluminum Leg > --- UTILITY ---------- Decoy Drone Bay > --- WEAPON ----------- Light Assault Rifle Light Cannon > --- INVENTORY -------- Structural Scanner Rocket Launcher [Rating: 20] Favorites ----------- Power Ion Engine Engine Ion Engine Propulsion Aluminum Leg Leg Aluminum Leg Utility Structural Scanner Device Structural Scanner Storage Small Storage Unit Weapon Light Assault Rifle Energy Gun Medium Laser Ballistic Gun Light Assault Rifle Ballistic Cannon Light Cannon Build | -11 -10 -10 -9 ------- Run | Yrd Mat Min Mat Slots Evolved 2 | . . . 2 Power 1 | . . . 1 Propulsion 1 | . . . 1 Utility . | . . . . Weapon . | . . . . Parts Attached 24 | 5 10 3 6 Power 6 | 1 1 1 3 Engine 6 | 1 1 1 3 Core . | . . . . Reactor . | . . . . Propulsion 5 | 2 1 1 1 Treads . | . . . . Leg 5 | 2 1 1 1 Wheel . | . . . . Hover . | . . . . Flight . | . . . . Utility 7 | . 5 1 1 Device 4 | . 2 1 1 Storage 3 | . 3 . . Processor . | . . . . Hackware . | . . . . Protection . | . . . . Artifact . | . . . . Weapon 6 | 2 3 . 1 Energy Gun 1 | 1 . . . Energy Cannon . | . . . . Ballistic Gun 4 | 1 2 . 1 Ballistic Cannon 1 | . 1 . . Launcher . | . . . . Special Weapon . | . . . . Impact Weapon . | . . . . Slashing Weapon . | . . . . Piercing Weapon . | . . . . Special Melee Weapon . | . . . . Unidentified Prototypes 1 | . . 1 . Parts Lost 4 | . . . 4 Power 2 | . . . 2 Propulsion 1 | . . . 1 Utility 1 | . . . 1 Weapon . | . . . . Highest Loss Streak 4 | . . . 4 To Critical Strikes . | . . . . Average Slot Usage (%) 93 | . 97 99 74 Engine 15 | . 14 14 19 Leg 26 | . 27 28 21 Device 13 | . 14 14 10 Storage 9 | . 11 13 . Ballistic Gun 14 | . 14 14 17 Ballistic Cannon 11 | . 11 14 5 Naked Turns . | . . . . Heaviest Build 28 | 9 16 23 28 Greatest Support 20 | 20 20 20 20 Greatest Overweight (x) 1 | . 1 1 1 Average Overweight (x) . | . . . . Largest Inventory Capacity 25 | 5 25 8 5 Average Capacity 7 | 5 7 7 5 Most Carried 8 | 5 8 8 5 Average Carried 6 | 3 7 7 3 Final Capacity 8 | 5 8 5 5 Final Carried 8 | 5 8 3 2 Class Distribution -------------------- 87% | Mutant 10% | Scavenger-Mutant Dominant Class ---------------- Mutant | -10/Materials Mutant | -10/Mines Scavenger-Mutant | -9/Materials Resources | -11 -10 -10 -9 ----------- Run | Yrd Mat Min Mat Matter Collected 583 | 250 209 66 58 Remotely . | . . . . Salvage Created 448 | . 144 79 225 Parts 39 | . 12 4 23 Haulers Intercepted . | . . . . Recyclers Shooed . | . . . . Parts Field Recycled . | . . . . Retrieved Matter . | . . . . Parts Self-Destructed . | . . . . Prevented . | . . . . Kills | -11 -10 -10 -9 ------- Run | Yrd Mat Min Mat Combat Hostiles Destroyed 17 | . 6 2 9 Guns 9 | . 3 . 6 Cannons 8 | . 3 2 3 Classes Destroyed 3 | . 2 . 1 Swarmer 7 | . 3 . 4 Grunt 8 | . 3 2 3 Sentry 2 | . . . 2 Best Kill Streak 4 | . 3 2 4 Combat Bots Only 4 | . 3 2 4 Max Kills in Single Turn 1 | . 1 1 1 Gunslinging . | . . . . Exploded . | . . . . Melee . | . . . . Uniques/NPCs Destroyed . | . . . . Combat | -11 -10 -10 -9 -------- Run | Yrd Mat Min Mat Hostile Shots Fired 119 | . 29 6 84 Missed 46 | . 11 3 32 Damage Taken 1024 | . 213 42 769 Core 145 | . . . 145 Absorbed by Shields . | . . . . Regen/Repaired (Parts) 23 | . 23 . . Core Remaining (%) 100 | 100 . 100 . Volleys Fired 54 | . 19 6 29 Largest 2 | . 2 2 2 Hottest 55 | . 55 55 55 Shots Fired 108 | . 38 12 58 Gun 78 | . 19 6 53 Cannon 30 | . 19 6 5 Launcher . | . . . . Special . | . . . . Kinetic 108 | . 38 12 58 Thermal . | . . . . Explosive . | . . . . Electromagnetic . | . . . . Robot Hit Streak 20 | . 4 4 20 Robot Miss Streak 2 | . 2 1 2 Penetration Max . | . . . . Secondary Targets 1 | . . . 1 Max Gunslinging Chain 1 | . . . 1 Shots Hit Robots 74 | . 20 8 46 Core Hits 31 | . 9 5 17 Critical Kills . | . . . . Critical Parts Destroyed . | . . . . Critical Strikes . | . . . . Melee Attacks . | . . . . Impact . | . . . . Slashing . | . . . . Piercing . | . . . . Sneak Attacks . | . . . . Combat Hostiles . | . . . . Follow-up Attacks . | . . . . Damage Inflicted 841 | . 321 114 406 Guns 540 | . 146 38 356 Cannons 297 | . 175 72 50 Explosions . | . . . . Melee . | . . . . Ramming 4 | . . 4 . Kinetic 837 | . 321 110 406 Thermal . | . . . . Explosive . | . . . . Electromagnetic . | . . . . Impact . | . . . . Slashing . | . . . . Piercing . | . . . . Highest Corruption . | . . . . Average Corruption . | . . . . Corruption Purged . | . . . . Corruption Blocked . | . . . . Overload Shots . | . . . . Overflow Damage . | . . . . Projectiles . | . . . . Explosions . | . . . . Melee . | . . . . Knockbacks 4 | . 4 . . Impact . | . . . . Kinetic 3 | . 3 . . Secondary 1 | . 1 . . Self-Inflicted Damage . | . . . . Shots . | . . . . Rammed . | . . . . Targets Rammed 3 | . 1 2 . Kicked 3 | . 1 2 . Crushed . | . . . . Highest Temperature 53 | . 53 40 48 Average Temperature 22 | . 27 23 19 Received Heat Transfer 324 | . 99 24 201 Siege Activations . | . . . . Robots Corrupted . | . . . . Combat Hostiles . | . . . . Parts Fried . | . . . . Impact Corruptions . | . . . . Robots Melted . | . . . . Combat Hostiles . | . . . . Parts Melted . | . . . . Heat Transferred . | . . . . Parts Sabotaged . | . . . . Parts Stolen . | . . . . Parts Stripped . | . . . . Power Chain Reactions . | . . . . Alert | -11 -10 -10 -9 ------- Run | Yrd Mat Min Mat Peak Influence 205 | . 205 70 180 Initial 5 | . . 5 . Average 42 | . 29 40 81 Maximum Alert Level 1 | . 1 . . Low Security (%) 99 | 100 98 100 100 Level 1 . | . 1 . . Level 2 . | . . . . Level 3 . | . . . . Level 4 . | . . . . Level 5 . | . . . . High Security . | . . . . Max Security . | . . . . Squads Dispatched 3 | . . . 3 Investigation . | . . . . Extermination . | . . . . Reinforcement 3 | . . . 3 Assault . | . . . . Garrison . | . . . . Intercept . | . . . . Searches Triggered . | . . . . Construction Impeded . | . . . . Haulers Reinforced . | . . . . Active Scanning Responses . | . . . . Cargo Convoy Interrupts . | . . . . Stealth | -11 -10 -10 -9 --------- Run | Yrd Mat Min Mat Distress Signals 5 | . 2 . 3 Communications Jammed . | . . . . Distress Signals . | . . . . Times Spotted 36 | . 15 3 18 Peak Tracking Total 5 | . 5 2 5 Tactical Retreats 1 | . . 1 . Traps | -11 -10 -10 -9 ------- Run | Yrd Mat Min Mat Traps Triggered 1 | . 1 . . Indirectly . | . . . . Trap Hack Attempts . | . . . . Triggered . | . . . . Disarmed . | . . . . Reprogrammed . | . . . . Reused . | . . . . Traps Extracted . | . . . . Installed . | . . . . Triggered . | . . . . Machines | -11 -10 -10 -9 ---------- Run | Yrd Mat Min Mat Machines Disabled . | . . . . Max in Single Turn . | . . . . Machines Repaired . | . . . . Machines Dismantled . | . . . . Machines Sabotaged . | . . . . Overloaded Fab Kills . | . . . . Hacking | -11 -10 -10 -9 --------- Run | Yrd Mat Min Mat Machines Accessed 9 | . 7 1 1 Terminals 6 | . 5 . 1 Fabricators . | . . . . Repair Stations 1 | . 1 . . Recycling Units 1 | . 1 . . Scanalyzers . | . . . . Garrison Access . | . . . . Total Hacks 18 | . 16 1 1 Successful 11 | . 9 1 1 Failed 7 | . 7 . . Catastrophic 2 | . 2 . . Database Lockouts . | . . . . Manual 3 | . 3 . . Terminals 11 | . 10 . 1 Fabricators . | . . . . Repair Stations 3 | . 3 . . Recycling Units 3 | . 3 . . Scanalyzers . | . . . . Garrison Access . | . . . . Terminal Hacks 8 | . 6 1 1 Record 1 | . . . 1 Open Door 1 | . . 1 . Branch Access Points 2 | . 2 . . Alert Level 1 | . 1 . . Locate Traps 1 | . 1 . . Recall Investigation 1 | . 1 . . Zone Layout 1 | . 1 . . Fabricator Hacks . | . . . . Repair Station Hacks 2 | . 2 . . Scan Component 1 | . 1 . . Repair 1 | . 1 . . Recycling Unit Hacks 1 | . 1 . . Report Inventory 1 | . 1 . . Scanalyzer . | . . . . Garrison Access Hacks . | . . . . Unauthorized Hacks . | . . . . Terminals . | . . . . Fabricators . | . . . . Repair Stations . | . . . . Recycling Units . | . . . . Scanalyzers . | . . . . Garrison Access . | . . . . Data Cores Recovered . | . . . . Used . | . . . . Hacking Detections 8 | . 7 . 1 Full Trace Events 1 | . 1 . . Feedback Events . | . . . . Feedback Blocked . | . . . . Robot Schematics Acquired . | . . . . Robots Built . | . . . . Authchips . | . . . . Time . | . . . . Total Robot Build Rating . | . . . . Part Schematics Acquired . | . . . . Parts Built . | . . . . Authchips . | . . . . Time . | . . . . Total Part Build Rating . | . . . . Parts Repaired 1 | . 1 . . Time 26 | . 26 . . Parts Recycled . | . . . . Recycled Matter . | . . . . Retrieved Matter . | . . . . Retrieved Components . | . . . . Parts Scanalyzed . | . . . . Part Schematics Acquired . | . . . . Parts Damaged . | . . . . Bothacking | -11 -10 -10 -9 ------------ Run | Yrd Mat Min Mat Used RIF Installer . | . . . . Robots Hacked . | . . . . Non-combat . | . . . . Combat . | . . . . Robot Hacks Applied . | . . . . Relay Couplers Released . | . . . . Fabnet Peak Effective % . | . . . . Robots Rewired . | . . . . Allies Hacked . | . . . . Hacks Repelled . | . . . . Allies | -11 -10 -10 -9 -------- Run | Yrd Mat Min Mat Total Allies . | . . . . Largest Group . | . . . . Highest-Rated Group . | . . . . Highest-Rated Ally . | . . . . Total Orders . | . . . . Ally Attacks . | . . . . Total Damage . | . . . . Kills . | . . . . Allies Corrupted 1 | . . . 1 Allies Melted . | . . . . Intel | -11 -10 -10 -9 ------- Run | Yrd Mat Min Mat Robot Analysis Total . | . . . . Derelict Logs Recovered 2 | . . 2 . Drone Launches 16 | . . . 16 Drone Recoveries . | . . . . Exploration | -11 -10 -10 -9 ------------- Run | Yrd Mat Min Mat Turns Passed 1688 | 68 749 538 333 Spaces Moved 1088 | 49 516 396 127 Core 4 | 4 . . . Treads . | . . . . Legs 1084 | 45 516 396 127 Wheels . | . . . . Hover . | . . . . Flight . | . . . . Fastest Speed 50 | 50 120 120 120 Average Speed 127 | 114 122 122 171 Slowest Speed 190 | 120 190 190 190 Overloaded Moves . | . . . . Propulsion Burnouts . | . . . . Robots Hopped . | . . . . Cave-ins Triggered . | . . . . Exploration Rate (%) 43 | 4 63 70 36 Regions Visited 3 Branch Regions 1 Pre-discovered Areas 3 | . . 3 . Known Exits Taken 1 | . 1 . . Unknown Exits Taken 2 | 1 . 1 . Scrap Searched . | . . . . Spaces Dug . | . . . . Terrain Destroyed . | . . . . Melee . | . . . . Projectile . | . . . . AOE . | . . . . Terrain Rammed . | . . . . Walls Destroyed . | . . . . Machines Disabled . | . . . . Actions | -11 -10 -10 -9 --------- Run | Yrd Mat Min Mat Total 1287 | 58 592 444 193 Wait 96 | . 40 27 29 Move 1085 | 48 515 395 127 Hop . | . . . . Pick Up 12 | 5 3 2 2 Fast Attach 9 | 5 4 . . Attach 5 | . . 1 4 Detach 1 | . . 1 . Swap 10 | . 6 2 2 Drop 12 | . 4 8 . Fire 54 | . 19 6 29 Melee . | . . . . Ram . | . . . . Kick 3 | . 1 2 . Crush . | . . . . Escape Stasis . | . . . . Rewire . | . . . . Trap . | . . . . Miscellaneous . | . . . . Route ------- -11/Scrapyard -10/Materials (discovered 3 exits: *Mat / *Min / [Sub]) -10/Mines (discovered 2 exits: *Mat / [Sub]) -9/Materials (discovered 1 exit: [*Min]) History --------- Turn | Location | Event 12 | -11/Scrapyard | Discovered new exit (range 15) 69 | -11/Scrapyard | Entered Materials 226 | -10/Materials | Identified exit to Mines 347 | -10/Materials | Discovered new exit (range 13) 492 | -10/Materials | Build established: Mutant 533 | -10/Materials | Discovered new exit (range 6) 575 | -10/Materials | Repaired Aluminum Leg 818 | -10/Materials | Entered Mines 825 | -10/Mines | Received a Rocket Launcher from a helpful Derelict 887 | -10/Mines | Learned location of Storage (-8) 916 | -10/Mines | Met a Derelict bent on vengeance 1137 | -10/Mines | Discovered new exit (range 15) 1165 | -10/Mines | Found a hidden stash of uninstalled traps 1252 | -10/Mines | A weapon hastily lodged in a ceiling crevice suddenly fell to the ground 1298 | -10/Mines | Learned location of Zion (-6) 1307 | -10/Mines | Discovered new exit (range 7) 1321 | -10/Mines | Found the Drone Emporium 1332 | -10/Mines | Found Prototype Device 1334 | -10/Mines | Identified Decoy Drone Bay 1356 | -10/Mines | Entered Materials 1356 | -9/Materials | Evolved 2 slots: Power x1, Propulsion x1 1429 | -9/Materials | Discovered new exit (range 41) 1480 | -9/Materials | Lost 4 allies 1669 | -9/Materials | Lost 4 parts (2p1n1u) 1689 | -9/Materials | Self-destructed Last Messages --------------- The unstable cave ceiling collapses. U-05 Engineer lays Concrete. U-05 Engineer builds a Wall. U-05 Engineer lays Concrete. K-01 Serf collects debris. U-05 Engineer lays Concrete. The unstable cave ceiling collapses. U-05 Engineer lays Concrete. U-05 Engineer builds a Wall. The unstable cave ceiling collapses. U-05 Engineer lays Concrete. K-01 Serf collects debris. U-05 Engineer builds a Wall. U-05 Engineer lays Concrete. U-05 Engineer builds a Door. U-05 Engineer lays Concrete. U-05 Engineer builds a Wall. U-05 Engineer lays Concrete. K-01 Serf destroyed. K-01 Serf collects debris. Map ----- +----------------------------------------------------+ | ???????????????????? # """ | | ???????????????????? # """ # ###### | | ???????????????????? ## """ # ####### | | ?????????????????????## + = # # | | ?????????????????????## # %! # " "" | | ???? #????????????## """ # [ + """"" | | ???? #????????????## """ # * # """ | | ???# #????????????## """ # %= [ #% | | ??? #????????????## # # ####+## | | "??# #????????????## ## ##?# #? | | ??# #????????????## """ # ##?# #? | | ?## #????????????##wts""" % # ##?# #? | | /## #????????#??? # """ # % #### ## | | #????????# ?? # % % | | +????????# ?? # %%* | | """ #????????# ? # ###+### ## = | | """ #????????# # % # ########## | | """ #?????????# # = # ""? ########## | | ########### #!%k# """"" ##???????# | | ##"""""""## + # """"" ##???????# | | """ ##" !"| "## # # """"" ##???????# | | """ ##" "####### # """? ?????????# | | """ % # ????????????????# | | < # ?????????????????#^ ^^ | | ##?????????????????# | | #####+## ## @##?????????????????? | | #??# ########## ##?????????????????? | | #??# # + #?????????????? | | #??# # """ # #?????????????? | | %#??# # """ # #?????????????? ? | | %#??# # """ # ????????????????? | | #??# # # ???????????????? | | #### # # ???????????????? | | #########+##### % ????????????????? | | # ## ##### ????????????????? | | # ## ?????????????????? | | # ## ??????????????????? | | # + ????????????????? | | ## ## ###????????????????? | | ## ## ###+###+###????????????????? | | ## ############# ??????????????????? | | #####+##########???????????????????????????????? | | ???????????????????????????? | | ######??????????????????????????????????? | | #???????????????????????????????????????? | | #### #???????????????????????????????????????? | | #??# #???????????????????????????????????????? | | #??# #???????????????????????????????????????? | | #??# #???????????????????????????????????????? | | #??# #???????????????????????????????????????? | +----------------------------------------------------+ Best States ------------- Heat Dissipation 28 Energy Generation 15 Energy Capacity 400 Matter Stores 300 Matter Capacity 300 Sight Range 16 Terrain Scan Density 10 ECM Strength 1 Evasion (%) 55 Item Schematics ----------------- None Robot Schematics ------------------ None Fabricated ------------ Nothing Alien Tech Used ----------------- None Achievements -------------- Release The Drones! Challenges ------------ None Game ------ Seed BeamNuclearDoomcannon Manual? 0 Play Time 00:19:01 Cumulative 4.8 hours Start 2024.04.26 @ 13:47:44 End 2024.04.26 @ 15:33:20 Sessions 2 Manual Loads 0 Difficulty Rogue Special Mode None Game No. 12 Rogue 12 Adventurer 0 Explorer 0 Win Type - Total 0 Types 0/0/0/0/0/0/0/0/0 Lore% 5 Gallery% 7 Achievement% 7 Wizard Run 0 Options --------- Layout 1 ASCII 0 Keyboard 0 Movement Mouse Keybinds 0 Fullscreen 0 Font 42/SmallcapsGlow Map View 50x35 Zoom Use 0% Tactical HUD 0 Map Filters NONE Filters NONE Steam 1 RUN: 73091393-c05c-43cf-824e-94735cda2228